[Event "ONJK-A 2019"]
[Site "Borne"]
[Date "2019.08.07"]
[Round "5.12"]
[White "Kroon, Gerbrich"]
[Black "De Vries, Tobias"]
[Result "0-1"]
[ECO "A08"]
[WhiteElo "1483"]
[BlackElo "1868"]
[Annotator "NA"]
[PlyCount "102"]
[EventDate "2019.08.05"]
[EventType "swiss"]
[EventCountry "NED"]
[SourceTitle "playchess.com"]
[Source "ChessBase"]
[SourceQuality "1"]
[TimeControl "5400+30"]

1. e4 {[%emt 0:00:00]} c5 {[%emt 0:00:00]} 2. Nf3 {[%emt 0:00:00]} Nc6 {[%emt 0:00:00]} 3. g3 {[%emt 0:00:23]} g6 {[%emt 0:00:12]} 4. Bg2 {[%emt 0:00:47]} Bg7 {[%emt 0:00:06]} 5. O-O {[%emt 0:01:09]} e6 {[%emt 0:00:20]} 6. d3 {[%emt 0:01:12]} Nge7 {[%emt 0:00:06]} 7. c3 {[%emt 0:01:19]} O-O {[%emt 0:01:58]} 8. Re1 {[%emt 0:01:32]} d5 {[%emt 0:00:33]} 9. Nbd2 {[%emt 0:01:45]} b6 {[%emt 0:02:21]} 10. Nb3 {[%emt 0:06:01]} Bb7 {[%emt 0:01:27]} 11. d4 {[%emt 0:02:16]} dxe4 {[%emt 0:04:43]} 12. Nfd2 {[%emt 0:09:19]} cxd4 {[%emt 0:00:50]} 13. cxd4 {[%emt 0:01:36]} Nxd4 {[%emt 0:01:20]} 14. Nxe4 {[%emt 0:03:13]} Nxb3 {[%emt 0:02:48]} 15. Qxb3 {[%emt 0:02:10]} Bd5 {[%emt 0:06:18]} 16. Qd1 {[%emt 0:04:54]} h6 {[%emt 0:13:31]} 17. Qe2 {[%emt 0:05:07]} Nf5 {[%emt 0:01:34]} 18. Rd1 {[%emt 0:05:18]} Qc8 {[%emt 0:03:03]} 19. Be3 {[%emt 0:05:49]} Nxe3 {[%emt 0:02:42]} 20. fxe3 {[%emt 0:00:36]} Rd8 {[%emt 0:01:35]} 21. Rac1 {[%emt 0:03:13]} Qb7 {[%emt 0:02:37]} 22. Nc3 {[%emt 0:01:51]} Bxg2 {[%emt 0:00:59]} 23. Qxg2 {[%emt 0:01:57]} Qxg2+ {[%emt 0:00:20]} 24. Kxg2 {[%emt 0:00:05]} Bxc3 {[%emt 0:03:43]} 25. bxc3 {[%emt 0:01:27]} Rac8 {[%emt 0:00:41]} 26. Rxd8+ {[%emt 0:04:30]} Rxd8 {[%emt 0:00:25]} 27. Rc2 {[%emt 0:00:30]} Kg7 {[%emt 0:03:49]} 28. Kf3 {[%emt 0:02:27]} f5 {[%emt 0:00:11]} 29. Kf4 {[%emt 0:05:03]} Kf6 {[%emt 0:00:41]} 30. h4 {[%emt 0:01:39]} Rd1 {[%emt 0:01:07]} 31. Kf3 {[%emt 0:01:16]} Ke5 {[%emt 0:02:50]} 32. Ke2 {[%emt 0:01:14]} Rd5 {[%emt 0:02:15]} 33. Rb2 {[%emt 0:03:03]} Rc5 {[%emt 0:03:47]} 34. Kd3 {[%emt 0:01:29]} Kd5 {[%emt 0:00:49]} 35. Rb4 {[%emt 0:04:47]} e5 {[%emt 0:01:55]} 36. a4 {[%emt 0:04:34]} e4+ {[%emt 0:15:26]} 37. Kc2 {[%emt 0:01:34]} Rc4 {[%emt 0:00:19]} 38. Rb5+ {[%emt 0:00:45]} Kd6 {[%emt 0:00:32]} 39. Kb3 {[%emt 0:00:31]} Rc5 {[%emt 0:00:50]} 40. Rb4 {[%emt 0:00:30]} Ke5 {[%emt 0:03:39]} 41. Rd4 {[%emt 0:02:12]} Rc6 {[%emt 0:03:24]} 42. Rd7 {[%emt 0:01:15]} a5 {[%emt 0:01:22]} 43. Rd4 {[%emt 0:01:23]} g5 {[%emt 0:01:23]} 44. hxg5 {[%emt 0:03:40]} hxg5 {[%emt 0:00:09]} 45. Rd1 {[%emt 0:00:53]} f4 {[%emt 0:01:14]} 46. gxf4+ {[%emt 0:01:35]} gxf4 {[%emt 0:00:08]} 47. exf4+ {[%emt 0:00:04]} Kxf4 {[%emt 0:00:10]} 48. Re1 {[%emt 0:01:02]} Kf3 {[%emt 0:00:31]} 49. Kc2 {[%emt 0:01:25]} e3 {[%emt 0:02:19]} 50. Kd3 {[%emt 0:00:44]} Rd6+ {[%emt 0:00:12]} 51. Kc4 {[%emt 0:01:30]} e2 {[%emt 0:02:47] Kd4} 0-1

[Event "ONJK-A 2019"]
[Site "Borne"]
[Date "2019.08.08"]
[Round "6.1"]
[White "Noordenbos, Daan"]
[Black "Ypma, Jord"]
[Result "1-0"]
[ECO "B94"]
[WhiteElo "2042"]
[BlackElo "1968"]
[Annotator "NA"]
[PlyCount "71"]
[EventDate "2019.08.05"]
[EventType "swiss"]
[EventCountry "NED"]
[SourceTitle "playchess.com"]
[Source "ChessBase"]
[SourceQuality "1"]
[TimeControl "5400+30"]

1. e4 {[%emt 0:00:00]} c5 {[%emt 0:00:00]} 2. Nf3 {[%emt 0:00:00]} d6 {[%emt 0:00:00]} 3. d4 {[%emt 0:00:00]} cxd4 {[%emt 0:00:13]} 4. Nxd4 {[%emt 0:00:00]} Nf6 {[%emt 0:00:31]} 5. Nc3 {[%emt 0:00:00]} a6 {[%emt 0:00:18]} 6. Bg5 {[%emt 0:00:03]} Nbd7 {[%emt 0:00:37]} 7. Qf3 {[%emt 0:00:03]} h6 {[%emt 0:06:25]} 8. Be3 {[%emt 0:10:46]} e5 {[%emt 0:05:41]} 9. Nb3 {[%emt 0:01:36]} b5 {[%emt 0:03:06]} 10. a4 {[%emt 0:06:35]} b4 {[%emt 0:02:51]} 11. Nd5 {[%emt 0:00:23]} Bb7 {[%emt 0:02:59]} 12. Bc4 {[%emt 0:19:37]} Nxd5 {[%emt 0:18:21]} 13. exd5 {[%emt 0:07:05]} Nb6 {[%emt 0:10:06]} 14. Nd2 {[%emt 0:01:03]} Be7 {[%emt 0:03:16]} 15. a5 {[%emt 0:02:30]} Nd7 {[%emt 0:09:46]} 16. Ra4 {[%emt 0:04:55]} Bc8 {[%emt 0:01:38]} 17. Nb3 {[%emt 0:03:54]} Rb8 {[%emt 0:01:29]} 18. Bd2 {[%emt 0:01:29]} O-O {[%emt 0:03:19]} 19. Rxb4 {[%emt 0:01:43]} Rxb4 {[%emt 0:00:33]} 20. Bxb4 {[%emt 0:00:03]} Bb7 {[%emt 0:00:30]} 21. Bd3 {[%emt 0:08:15]} g6 {[%emt 0:03:01]} 22. c4 {[%emt 0:04:21]} f5 {[%emt 0:03:52]} 23. Qh3 {[%emt 0:00:40]} Kg7 {[%emt 0:01:02]} 24. g4 {[%emt 0:04:06]} Bg5 {[%emt 0:07:20]} 25. gxf5 {[%emt 0:02:26]} gxf5 {[%emt 0:05:01]} 26. Bxd6 {[%emt 0:03:09]} Rf6 {[%emt 0:00:34]} 27. Bb4 {[%emt 0:00:31]} e4 {[%emt 0:02:27]} 28. Be2 {[%emt 0:02:18]} Ne5 {[%emt 0:00:50]} 29. Nd4 {[%emt 0:02:12]} Bc8 {[%emt 0:01:25]} 30. Qh5 {[%emt 0:01:25]} Nd3+ {[%emt 0:02:06]} 31. Bxd3 {[%emt 0:00:15]} exd3 {[%emt 0:00:01]} 32. h4 {[%emt 0:01:11]} d2+ {[%emt 0:01:18]} 33. Kd1 {[%emt 0:00:50]} Bf4 {[%emt 0:01:17]} 34. Rg1+ {[%emt 0:00:53]} Kh7 {[%emt 0:00:33]} 35. Nc6 {[%emt 0:01:22]} Qc7 {[%emt 0:00:56]} 36. Qe8 {[%emt 0:00:35]} 1-0

[Event "ONJK-A 2019"]
[Site "Borne"]
[Date "2019.08.08"]
[Round "6.2"]
[White "Van Malder, Dries"]
[Black "Maerevoet, Sim"]
[Result "0-1"]
[ECO "B15"]
[WhiteElo "2178"]
[BlackElo "2321"]
[Annotator "NA"]
[PlyCount "84"]
[EventDate "2019.08.05"]
[EventType "swiss"]
[EventCountry "NED"]
[SourceTitle "playchess.com"]
[Source "ChessBase"]
[SourceQuality "1"]
[TimeControl "5400+30"]

1. e4 {[%emt 0:00:00]} c6 {[%emt 0:01:23]} 2. d4 {[%emt 0:00:01]} d5 {[%emt 0:00:08]} 3. Nc3 {[%emt 0:00:07]} dxe4 {[%emt 0:00:09]} 4. Nxe4 {[%emt 0:00:09]} Nf6 {[%emt 0:00:10]} 5. Nxf6+ {[%emt 0:00:08]} exf6 {[%emt 0:00:04]} 6. Bc4 {[%emt 0:02:16]} Bd6 {[%emt 0:00:43]} 7. Qe2+ {[%emt 0:04:37]} Qe7 {[%emt 0:00:10]} 8. Qxe7+ {[%emt 0:00:05]} Kxe7 {[%emt 0:00:37]} 9. Ne2 {[%emt 0:01:36]} Be6 {[%emt 0:06:15]} 10. Bd3 {[%emt 0:02:09]} Nd7 {[%emt 0:04:44]} 11. Bf4 {[%emt 0:01:45]} Nb6 {[%emt 0:04:46]} 12. Bxd6+ {[%emt 0:01:00]} Kxd6 {[%emt 0:00:06]} 13. O-O {[%emt 0:04:47]} a5 {[%emt 0:06:33]} 14. Ng3 {[%emt 0:13:47]} Nd5 {[%emt 0:08:03]} 15. c3 {[%emt 0:08:41]} a4 {[%emt 0:05:44]} 16. a3 {[%emt 0:01:31]} Nf4 {[%emt 0:05:01]} 17. Bc2 {[%emt 0:07:57]} h5 {[%emt 0:13:02]} 18. Rfe1 {[%emt 0:08:18]} Ra5 {[%emt 0:06:13]} 19. Ne4+ {[%emt 0:04:40]} Kc7 {[%emt 0:00:31]} 20. Nc5 {[%emt 0:05:14]} b6 {[%emt 0:00:23]} 21. Nxe6+ {[%emt 0:00:07]} Nxe6 {[%emt 0:00:37]} 22. Bd3 {[%emt 0:04:54]} Kd6 {[%emt 0:04:19]} 23. Rad1 {[%emt 0:02:46]} h4 {[%emt 0:03:33]} 24. Rd2 {[%emt 0:08:53]} Rg5 {[%emt 0:02:56]} 25. f3 {[%emt 0:00:23]} b5 {[%emt 0:05:17]} 26. Bb1 {[%emt 0:02:34]} Rh6 {[%emt 0:04:16]} 27. Bc2 {[%emt 0:03:43]} Rhh5 {[%emt 0:04:54]} 28. Bd1 {[%emt 0:01:54]} Rh8 {[%emt 0:01:27]} 29. Bc2 {[%emt 0:00:24]} Rh6 {[%emt 0:02:05]} 30. Re3 {[%emt 0:01:50]} f5 {[%emt 0:01:45]} 31. Re5 {[%emt 0:01:22]} Rhh5 {[%emt 0:02:41]} 32. b3 {[%emt 0:02:34]} axb3 {[%emt 0:00:22]} 33. Bxb3 {[%emt 0:00:09]} h3 {[%emt 0:01:31]} 34. Bxe6 {[%emt 0:03:21]} fxe6 {[%emt 0:00:09]} 35. a4 {[%emt 0:03:05]} bxa4 {[%emt 0:01:11]} 36. Ra5 {[%emt 0:00:22]} f4 {[%emt 0:01:36]} 37. Rxa4 {[%emt 0:00:16]} Rg6 {[%emt 0:00:04]} 38. Kf1 {[%emt 0:01:01]} Rg3 {[%emt 0:01:36]} 39. c4 {[%emt 0:00:31]} hxg2+ {[%emt 0:00:51]} 40. Rxg2 {[%emt 0:00:04]} Rxf3+ {[%emt 0:00:05]} 41. Ke2 {[%emt 0:00:43]} Rb3 {[%emt 0:00:37]} 42. Ra7 {[%emt 0:00:44]} f3+ {[%emt 0:00:06]} 0-1

[Event "ONJK-A 2019"]
[Site "Borne"]
[Date "2019.08.08"]
[Round "6.3"]
[White "Hilwerda, Jonas"]
[Black "Baselmans, Luuk"]
[Result "1/2-1/2"]
[ECO "C01"]
[WhiteElo "2275"]
[BlackElo "2212"]
[Annotator "NA"]
[PlyCount "67"]
[EventDate "2019.08.05"]
[EventType "swiss"]
[EventCountry "NED"]
[SourceTitle "playchess.com"]
[Source "ChessBase"]
[SourceQuality "1"]
[TimeControl "5400+30"]

1. e4 {[%emt 0:00:00]} e6 {[%emt 0:00:00]} 2. d4 {[%emt 0:00:00]} d5 {[%emt 0:00:12]} 3. exd5 {[%emt 0:00:00]} exd5 {[%emt 0:00:00]} 4. Nc3 {[%emt 0:00:25]} c6 {[%emt 0:00:10]} 5. Bf4 {[%emt 0:00:28]} Bd6 {[%emt 0:04:25]} 6. Qd2 {[%emt 0:00:44]} Nf6 {[%emt 0:07:54]} 7. O-O-O {[%emt 0:00:39]} O-O {[%emt 0:00:41]} 8. f3 {[%emt 0:00:58]} b5 {[%emt 0:01:41]} 9. Bd3 {[%emt 0:02:15]} a5 {[%emt 0:02:10]} 10. Nge2 {[%emt 0:02:49]} a4 {[%emt 0:01:05]} 11. Bxd6 {[%emt 0:00:35]} Qxd6 {[%emt 0:00:06]} 12. Qf4 {[%emt 0:00:25]} Qxf4+ {[%emt 0:11:39]} 13. Nxf4 {[%emt 0:00:03]} Re8 {[%emt 0:00:27]} 14. Rhe1 {[%emt 0:04:37]} Rxe1 {[%emt 0:06:09]} 15. Rxe1 {[%emt 0:01:03]} Kf8 {[%emt 0:00:19]} 16. g4 {[%emt 0:04:10]} h6 {[%emt 0:01:10]} 17. h4 {[%emt 0:16:46]} g6 {[%emt 0:02:55]} 18. Nce2 {[%emt 0:01:55]} Na6 {[%emt 0:13:11]} 19. Ng3 {[%emt 0:06:17]} Bd7 {[%emt 0:07:46]} 20. h5 {[%emt 0:10:38]} gxh5 {[%emt 0:00:00]} 21. gxh5 {[%emt 0:16:24]} Re8 {[%emt 0:13:14]} 22. Rxe8+ {[%emt 0:05:43]} Kxe8 {[%emt 0:00:00]} 23. Bf5 {[%emt 0:05:06]} Nc7 {[%emt 0:00:00]} 24. Kd2 {[%emt 0:03:43]} Bxf5 {[%emt 0:00:00]} 25. Nxf5 {[%emt 0:00:03]} Ne6 {[%emt 0:00:00]} 26. Nxe6 {[%emt 0:00:59]} fxe6 {[%emt 0:00:00]} 27. Nxh6 {[%emt 0:03:06]} Nxh5 {[%emt 0:00:00]} 28. Kc3 {[%emt 0:01:38]} Ke7 {[%emt 0:02:24]} 29. Kb4 {[%emt 0:00:00]} Kd6 {[%emt 0:00:00]} 30. Nf7+ {[%emt 0:03:23]} Ke7 {[%emt 0:00:00]} 31. Ne5 {[%emt 0:00:00]} Kd6 {[%emt 0:00:00]} 32. Nf7+ {[%emt 0:00:00]} Ke7 {[%emt 0:00:00]} 33. Ne5 {[%emt 0:02:41]} Kd6 {[%emt 0:00:00]} 34. Nf7+ {[%emt 0:00:34] Ke5} 1/2-1/2

[Event "ONJK-A 2019"]
[Site "Borne"]
[Date "2019.08.08"]
[Round "6.4"]
[White "Shakhverdian, William"]
[Black "Hempler, Poul"]
[Result "1-0"]
[ECO "D45"]
[WhiteElo "2001"]
[BlackElo "1856"]
[Annotator "NA"]
[PlyCount "55"]
[EventDate "2019.08.05"]
[EventType "swiss"]
[EventCountry "NED"]
[SourceTitle "playchess.com"]
[Source "ChessBase"]
[SourceQuality "1"]
[TimeControl "5400+30"]

1. d4 {[%emt 0:00:00]} d5 {[%emt 0:00:00]} 2. c4 {[%emt 0:00:00]} c6 {[%emt 0:00:00]} 3. Nf3 {[%emt 0:00:00]} Nf6 {[%emt 0:00:00]} 4. Nc3 {[%emt 0:00:14]} e6 {[%emt 0:01:08]} 5. e3 {[%emt 0:00:07]} Bd6 {[%emt 0:06:43]} 6. Bd3 {[%emt 0:00:27]} O-O {[%emt 0:00:38]} 7. O-O {[%emt 0:01:32]} b6 {[%emt 0:02:54]} 8. Re1 {[%emt 0:00:55]} Ba6 {[%emt 0:01:11]} 9. b3 {[%emt 0:01:30]} c5 {[%emt 0:09:56]} 10. Bb2 {[%emt 0:12:51]} Re8 {[%emt 0:06:50]} 11. Rc1 {[%emt 0:06:39]} dxc4 {[%emt 0:08:38]} 12. bxc4 {[%emt 0:00:37]} Nc6 {[%emt 0:01:37]} 13. Nb5 {[%emt 0:00:18]} Bxb5 {[%emt 0:04:32]} 14. cxb5 {[%emt 0:00:04]} Nb4 {[%emt 0:00:08]} 15. Bb1 {[%emt 0:00:22]} cxd4 {[%emt 0:15:50]} 16. Nxd4 {[%emt 0:00:57]} Bc5 {[%emt 0:00:17]} 17. a3 {[%emt 0:01:01]} Bxd4 {[%emt 0:01:55]} 18. Bxd4 {[%emt 0:07:03]} Nbd5 19. Be5 {[%emt 0:08:44]} Rc8 {[%emt 0:02:30]} 20. e4 {[%emt 0:00:00]} Ne7 {[%emt 0:00:28]} 21. Qe2 {[%emt 0:00:00]} Ng6 {[%emt 0:02:33]} 22. Rcd1 {[%emt 0:01:25]} Nxe5 {[%emt 0:06:03]} 23. Rxd8 {[%emt 0:00:06]} Rexd8 {[%emt 0:00:07]} 24. Rd1 {[%emt 0:02:26]} Ned7 {[%emt 0:03:10]} 25. Qd3 {[%emt 0:00:34]} Rc5 {[%emt 0:02:48]} 26. f4 {[%emt 0:04:56]} Rdc8 {[%emt 0:00:31]} 27. e5 {[%emt 0:06:56]} Rc3 {[%emt 0:00:11]} 28. Qd6 {[%emt 0:00:12]} 1-0

[Event "ONJK-A 2019"]
[Site "Borne"]
[Date "2019.08.08"]
[Round "6.5"]
[White "Godde, Matthias"]
[Black "De Bock, Thijs"]
[Result "0-1"]
[ECO "B76"]
[WhiteElo "1989"]
[BlackElo "1870"]
[Annotator "NA"]
[PlyCount "94"]
[EventDate "2019.08.05"]
[EventType "swiss"]
[EventCountry "NED"]
[SourceTitle "playchess.com"]
[Source "ChessBase"]
[SourceQuality "1"]
[TimeControl "5400+30"]

1. e4 {[%emt 0:00:00]} c5 {[%emt 0:00:00]} 2. Nf3 {[%emt 0:00:16]} d6 {[%emt 0:00:00]} 3. d4 {[%emt 0:00:21]} cxd4 {[%emt 0:00:00]} 4. Nxd4 {[%emt 0:00:08]} Nf6 {[%emt 0:00:00]} 5. Nc3 {[%emt 0:00:10]} g6 {[%emt 0:00:00]} 6. Be3 {[%emt 0:00:25]} Bg7 {[%emt 0:00:00]} 7. f3 {[%emt 0:00:16]} O-O {[%emt 0:00:00]} 8. Qd2 {[%emt 0:00:05]} Nc6 {[%emt 0:00:02]} 9. O-O-O {[%emt 0:00:43]} d5 {[%emt 0:00:02]} 10. Nxc6 {[%emt 0:28:09]} bxc6 {[%emt 0:00:10]} 11. exd5 {[%emt 0:01:22]} Nxd5 {[%emt 0:00:06]} 12. Nxd5 {[%emt 0:01:02]} cxd5 {[%emt 0:00:02]} 13. Qxd5 {[%emt 0:03:00]} Qc7 {[%emt 0:00:10]} 14. Qc5 {[%emt 0:09:13]} Qb7 {[%emt 0:00:21]} 15. Bd4 {[%emt 0:03:27]} Bf5 {[%emt 0:02:49]} 16. Bxg7 {[%emt 0:08:16]} Rfc8 {[%emt 0:00:24]} 17. Qxc8+ {[%emt 0:00:09]} Rxc8 {[%emt 0:00:24]} 18. Bc3 {[%emt 0:00:06]} Qb6 {[%emt 0:03:50]} 19. Bd3 {[%emt 0:02:07]} Be6 {[%emt 0:01:31]} 20. a3 {[%emt 0:02:58]} Qd6 {[%emt 0:03:35]} 21. g3 {[%emt 0:09:43]} Qc5 {[%emt 0:04:00]} 22. Rhe1 {[%emt 0:01:06]} Qf2 {[%emt 0:00:17]} 23. Ba6 {[%emt 0:02:02]} Rb8 {[%emt 0:02:52]} 24. Be5 {[%emt 0:02:21]} Re8 {[%emt 0:00:07]} 25. Bb5 {[%emt 0:01:35]} Rc8 {[%emt 0:00:06]} 26. Bc3 {[%emt 0:05:33]} Qxh2 {[%emt 0:00:52]} 27. Ba6 {[%emt 0:00:57]} Re8 {[%emt 0:00:22]} 28. Be5 {[%emt 0:03:42]} Qf2 {[%emt 0:01:19]} 29. Bb7 {[%emt 0:05:44]} Bf5 {[%emt 0:03:03]} 30. Be4 {[%emt 0:00:01]} Bxe4 {[%emt 0:00:06]} 31. fxe4 {[%emt 0:00:21]} f6 {[%emt 0:01:55]} 32. Bc3 {[%emt 0:00:59]} Qxg3 {[%emt 0:00:15]} 33. e5 {[%emt 0:00:07]} f5 {[%emt 0:01:25]} 34. e6 {[%emt 0:00:01]} f4 {[%emt 0:00:35]} 35. Kb1 {[%emt 0:03:28]} f3 {[%emt 0:00:32]} 36. Rh1 {[%emt 0:00:46]} f2 {[%emt 0:03:01]} 37. Rdf1 {[%emt 0:02:39]} Rf8 {[%emt 0:00:29]} 38. Rxh7 {[%emt 0:00:44]} Qxc3 {[%emt 0:00:08]} 39. bxc3 {[%emt 0:00:01]} Kxh7 {[%emt 0:00:06]} 40. Kc1 {[%emt 0:00:18]} g5 {[%emt 0:00:05]} 41. Kd2 {[%emt 0:00:04]} g4 {[%emt 0:00:04]} 42. Ke2 {[%emt 0:00:48]} g3 {[%emt 0:00:05]} 43. Rh1+ {[%emt 0:00:06]} Kg6 {[%emt 0:00:07]} 44. Kf1 {[%emt 0:00:06]} Rf3 {[%emt 0:00:53]} 45. a4 {[%emt 0:01:11]} Rxc3 {[%emt 0:00:05]} 46. Kg2 {[%emt 0:00:10]} Kf6 {[%emt 0:00:13]} 47. Rh6+ {[%emt 0:01:04]} Ke5 {[%emt 0:00:05]} 0-1

[Event "ONJK-A 2019"]
[Site "Borne"]
[Date "2019.08.08"]
[Round "6.6"]
[White "Baselmans, Sam"]
[Black "Vleming, Stefan"]
[Result "1-0"]
[ECO "C54"]
[WhiteElo "2064"]
[BlackElo "1760"]
[Annotator "NA"]
[PlyCount "69"]
[EventDate "2019.08.05"]
[EventType "swiss"]
[EventCountry "NED"]
[SourceTitle "playchess.com"]
[Source "ChessBase"]
[SourceQuality "1"]
[TimeControl "5400+30"]

1. e4 {[%emt 0:00:00]} e5 {[%emt 0:03:08]} 2. Nf3 {[%emt 0:00:00]} Nc6 {[%emt 0:00:36]} 3. Bc4 {[%emt 0:00:00]} Nf6 {[%emt 0:00:10]} 4. d3 {[%emt 0:00:00]} Bc5 {[%emt 0:00:08]} 5. O-O {[%emt 0:00:03]} d6 {[%emt 0:00:41]} 6. c3 {[%emt 0:00:23]} Be6 {[%emt 0:02:18]} 7. Bb3 {[%emt 0:13:50]} Bb6 {[%emt 0:13:28]} 8. Nbd2 {[%emt 0:00:35]} O-O {[%emt 0:02:08]} 9. h3 {[%emt 0:02:32]} d5 {[%emt 0:10:26]} 10. Re1 {[%emt 0:01:06]} Re8 {[%emt 0:02:09]} 11. Ng5 {[%emt 0:09:13]} Qd7 {[%emt 0:11:46]} 12. Qe2 {[%emt 0:05:59]} Na5 {[%emt 0:14:39]} 13. Bc2 {[%emt 0:00:25]} dxe4 {[%emt 0:04:52]} 14. dxe4 {[%emt 0:01:01]} Rad8 {[%emt 0:02:14]} 15. a4 {[%emt 0:04:19]} c5 {[%emt 0:03:43]} 16. Nxe6 {[%emt 0:02:59]} Qxe6 {[%emt 0:02:09]} 17. Nf1 {[%emt 0:00:49]} c4 {[%emt 0:04:58]} 18. Ng3 {[%emt 0:03:11]} Nd7 {[%emt 0:03:08]} 19. Be3 {[%emt 0:03:23]} Bxe3 {[%emt 0:01:31]} 20. Qxe3 {[%emt 0:01:04]} b6 {[%emt 0:00:55]} 21. Rad1 {[%emt 0:02:42]} Nc5 {[%emt 0:01:14]} 22. Nf5 {[%emt 0:04:03]} Nab3 {[%emt 0:02:47]} 23. Nxg7 {[%emt 0:01:11]} Kxg7 {[%emt 0:00:54]} 24. Rxd8 {[%emt 0:00:05]} Rxd8 {[%emt 0:00:40]} 25. Qg5+ {[%emt 0:00:06]} Qg6 {[%emt 0:00:10]} 26. Qxd8 {[%emt 0:00:06]} Ne6 {[%emt 0:01:55]} 27. Qd1 {[%emt 0:07:31]} h5 {[%emt 0:01:04]} 28. Bxb3 {[%emt 0:00:22]} cxb3 {[%emt 0:00:10]} 29. Qf3 {[%emt 0:00:31]} Kf8 {[%emt 0:00:30]} 30. Qf5 {[%emt 0:01:47]} Qxf5 {[%emt 0:01:38]} 31. exf5 {[%emt 0:00:05]} Nc5 {[%emt 0:00:05]} 32. Rxe5 {[%emt 0:00:52]} Nxa4 {[%emt 0:00:08]} 33. f6 {[%emt 0:01:16]} Nxb2 {[%emt 0:00:16]} 34. Rxh5 {[%emt 0:00:16]} Ke8 {[%emt 0:00:15]} 35. Rb5 {[%emt 0:00:05]} 1-0

[Event "ONJK-A 2019"]
[Site "Borne"]
[Date "2019.08.08"]
[Round "6.7"]
[White "Boudry, William"]
[Black "Akulova, Alicia"]
[Result "1-0"]
[ECO "B28"]
[WhiteElo "2033"]
[BlackElo "1702"]
[Annotator "NA"]
[PlyCount "73"]
[EventDate "2019.08.05"]
[EventType "swiss"]
[EventCountry "NED"]
[SourceTitle "playchess.com"]
[Source "ChessBase"]
[SourceQuality "1"]
[TimeControl "5400+30"]

1. e4 {[%emt 0:00:19]} c5 {[%emt 0:00:00]} 2. Nf3 {[%emt 0:00:19]} Nc6 {[%emt 0:01:03]} 3. d4 {[%emt 0:03:37]} cxd4 {[%emt 0:00:43]} 4. Nxd4 {[%emt 0:00:38]} a6 {[%emt 0:07:01]} 5. c4 {[%emt 0:01:26]} d6 {[%emt 0:05:20]} 6. Be3 {[%emt 0:01:44]} Qc7 {[%emt 0:04:27]} 7. Nc3 {[%emt 0:00:42]} e6 {[%emt 0:02:58]} 8. Be2 {[%emt 0:00:44]} Nge7 {[%emt 0:09:39]} 9. O-O {[%emt 0:03:08]} Nxd4 {[%emt 0:06:29]} 10. Qxd4 {[%emt 0:01:54]} Nc6 {[%emt 0:00:48]} 11. Qb6 {[%emt 0:01:27]} Qxb6 {[%emt 0:03:20]} 12. Bxb6 {[%emt 0:00:05]} Bd7 {[%emt 0:01:23]} 13. Rfd1 {[%emt 0:00:41]} Na7 {[%emt 0:04:27]} 14. Bc7 {[%emt 0:01:20]} Nc8 {[%emt 0:03:52]} 15. e5 {[%emt 0:05:55]} dxe5 {[%emt 0:02:12]} 16. Bf3 {[%emt 0:00:15]} Be7 {[%emt 0:04:56]} 17. Bxe5 {[%emt 0:01:47]} f6 {[%emt 0:04:09]} 18. Rxd7 {[%emt 0:01:13]} Kxd7 {[%emt 0:01:30]} 19. Rd1+ {[%emt 0:00:18]} Ke8 {[%emt 0:01:48]} 20. Bxb7 {[%emt 0:01:47]} fxe5 {[%emt 0:10:21]} 21. Bxa8 {[%emt 0:00:19]} Nb6 {[%emt 0:00:21]} 22. Bc6+ {[%emt 0:00:32]} Kf7 {[%emt 0:00:11]} 23. b3 {[%emt 0:00:16]} a5 {[%emt 0:01:47]} 24. Ne4 {[%emt 0:01:19]} Rb8 {[%emt 0:04:21]} 25. c5 {[%emt 0:04:13]} Rc8 {[%emt 0:04:32]} 26. cxb6 {[%emt 0:01:45]} Rxc6 {[%emt 0:00:00]} 27. b7 {[%emt 0:00:00]} Rb6 {[%emt 0:00:39]} 28. Rd7 {[%emt 0:00:00]} a4 {[%emt 0:03:39]} 29. g3 {[%emt 0:01:32]} axb3 {[%emt 0:00:47]} 30. axb3 {[%emt 0:00:02]} Rxb3 {[%emt 0:00:29]} 31. Rc7 {[%emt 0:00:28]} h6 {[%emt 0:01:52]} 32. Kg2 {[%emt 0:00:10]} Rb6 {[%emt 0:00:33]} 33. Nd6+ {[%emt 0:00:20]} Kf6 {[%emt 0:00:35]} 34. Nc8 {[%emt 0:00:12]} Bd8 {[%emt 0:01:19]} 35. Nxb6 {[%emt 0:00:44]} Bxc7 {[%emt 0:00:09]} 36. b8=Q {[%emt 0:00:07]} Bxb8 {[%emt 0:00:14]} 37. Nd7+ {[%emt 0:00:08]} 1-0

[Event "ONJK-A 2019"]
[Site "Borne"]
[Date "2019.08.08"]
[Round "6.9"]
[White "De Vries, Tobias"]
[Black "Butzen, Robin"]
[Result "1-0"]
[ECO "A04"]
[WhiteElo "1868"]
[BlackElo "1967"]
[Annotator "NA"]
[PlyCount "43"]
[EventDate "2019.08.05"]
[EventType "swiss"]
[EventCountry "NED"]
[SourceTitle "playchess.com"]
[Source "ChessBase"]
[SourceQuality "1"]
[TimeControl "5400+30"]

1. Nf3 {[%emt 0:02:06]} c5 {[%emt 0:00:00]} 2. g3 {[%emt 0:00:26]} g6 {[%emt 0:00:00]} 3. Bg2 {[%emt 0:00:23]} Bg7 {[%emt 0:00:00]} 4. d4 {[%emt 0:01:26]} cxd4 {[%emt 0:03:37]} 5. Nxd4 {[%emt 0:00:22]} Nc6 {[%emt 0:00:12]} 6. Nxc6 {[%emt 0:00:22]} bxc6 {[%emt 0:00:28]} 7. O-O {[%emt 0:04:45]} d5 {[%emt 0:01:52]} 8. c4 {[%emt 0:04:15]} e6 {[%emt 0:06:58]} 9. cxd5 {[%emt 0:13:19]} cxd5 {[%emt 0:01:13]} 10. e4 {[%emt 0:01:04]} dxe4 {[%emt 0:06:57]} 11. Bxe4 {[%emt 0:02:42]} Rb8 {[%emt 0:04:09]} 12. Qa4+ {[%emt 0:06:40]} Bd7 {[%emt 0:00:08]} 13. Qxa7 {[%emt 0:04:27]} Rxb2 {[%emt 0:05:07]} 14. Rd1 {[%emt 0:18:11]} Re2 {[%emt 0:27:14]} 15. Rxd7 {[%emt 0:08:12]} Re1+ {[%emt 0:15:48]} 16. Kg2 {[%emt 0:00:06]} Rxc1 {[%emt 0:00:04]} 17. Rxd8+ {[%emt 0:00:39]} Kxd8 {[%emt 0:00:02]} 18. Nc3 {[%emt 0:05:33]} Rxa1 {[%emt 0:00:07]} 19. Nb5 {[%emt 0:01:46]} Rd1 {[%emt 0:06:59]} 20. Qc7+ {[%emt 0:00:30]} Ke8 {[%emt 0:00:11]} 21. Bc6+ {[%emt 0:01:00]} Kf8 {[%emt 0:00:07]} 22. Nd6 {[%emt 0:00:20]} 1-0